[Event "*** Titled Tuesday Blitz"]
[Site "Chess.com"]
[Date "2019.07.02"]
[Round "1"]
[White "Alexander_Moskalenko"]
[Black "KestutisLabeckas"]
[Result "1-0"]
[WhiteElo "2852"]
[BlackElo "2435"]
[TimeControl "180+2"]
[EndTime "13:06:40 PDT"]
[Termination "Alexander_Moskalenko won by resignation"]

1. Nf3 {[%clk 0:02:57.7]} 1... d5 {[%clk 0:03:00]} 2. c4 {[%clk 0:02:59.6]} 2...
c6 {[%clk 0:03:00.9]} 3. e3 {[%clk 0:03:00.3]} 3... Nf6 {[%clk 0:03:01.4]} 4.
Nc3 {[%clk 0:03:01.2]} 4... g6 {[%clk 0:02:52.3]} 5. h3 {[%clk 0:03:00]} 5...
Bg7 {[%clk 0:02:53.4]} 6. d4 {[%clk 0:03:01]} 6... O-O {[%clk 0:02:54]} 7. Be2
{[%clk 0:03:02.1]} 7... dxc4 {[%clk 0:02:44.7]} 8. Bxc4 {[%clk 0:03:04]} 8... b5
{[%clk 0:02:44.2]} 9. Bb3 {[%clk 0:03:02.5]} 9... Bb7 {[%clk 0:02:42.9]} 10. O-O
{[%clk 0:02:55.7]} 10... a6 {[%clk 0:02:41.3]} 11. e4 {[%clk 0:02:47.3]} 11...
c5 {[%clk 0:02:25.5]} 12. e5 {[%clk 0:02:41.3]} 12... Ne4 {[%clk 0:02:22]} 13.
Nxe4 {[%clk 0:02:39.4]} 13... Bxe4 {[%clk 0:02:23.9]} 14. Re1 {[%clk 0:02:41.3]}
14... Bd5 {[%clk 0:02:09.8]} 15. dxc5 {[%clk 0:02:39.4]} 15... Bxb3 {[%clk
0:01:55.4]} 16. Qxb3 {[%clk 0:02:41.3]} 16... Nc6 {[%clk 0:01:54.6]} 17. e6
{[%clk 0:02:25.3]} 17... f5 {[%clk 0:01:49.7]} 18. Rd1 {[%clk 0:02:25.9]} 18...
Qc8 {[%clk 0:01:46.9]} 19. Rd7 {[%clk 0:02:14.4]} 19... Na5 {[%clk 0:01:36.5]}
20. Qd5 {[%clk 0:02:05.5]} 20... Nc4 {[%clk 0:01:17.2]} 21. Bg5 {[%clk
0:01:53.1]} 21... Bxb2 {[%clk 0:01:12.4]} 22. Rd1 {[%clk 0:01:52.7]} 22... Re8
{[%clk 0:00:41.5]} 23. Bxe7 {[%clk 0:01:52.8]} 23... Bg7 {[%clk 0:00:29.5]} 24.
Bd6 {[%clk 0:01:53]} 24... a5 {[%clk 0:00:20.1]} 25. e7+ {[%clk 0:01:52.3]}
25... Kh8 {[%clk 0:00:21.4]} 26. Ng5 {[%clk 0:01:53.7]} 26... h6 {[%clk
0:00:22.7]} 27. Nf7+ {[%clk 0:01:54.1]} 27... Kh7 {[%clk 0:00:23.6]} 28. Rc7
{[%clk 0:01:56]} 28... Qa6 {[%clk 0:00:22.1]} 29. h4 {[%clk 0:01:52.3]} 29...
Rac8 {[%clk 0:00:17.6]} 30. Rxc8 {[%clk 0:01:50.5]} 30... Qxc8 {[%clk
0:00:19.4]} 31. h5 {[%clk 0:01:52.4]} 31... Nb2 {[%clk 0:00:17.1]} 32. hxg6+
{[%clk 0:01:50.4]} 32... Kxg6 {[%clk 0:00:19]} 33. Re1 {[%clk 0:01:51.3]} 33...
Nc4 {[%clk 0:00:14.6]} 34. Re6+ {[%clk 0:01:50.8]} 34... Kxf7 {[%clk 0:00:15.8]}
35. Rxh6+ {[%clk 0:01:51.4]} 1-0

[Event "*** Titled Tuesday Blitz"]
[Site "Chess.com"]
[Date "2019.07.02"]
[Round "1"]
[White "vpantev"]
[Black "Mbneu"]
[Result "0-1"]
[WhiteElo "2629"]
[BlackElo "2328"]
[TimeControl "180+2"]
[EndTime "13:06:44 PDT"]
[Termination "Mbneu won by resignation"]

1. d4 {[%clk 0:02:58.6]} 1... Nf6 {[%clk 0:03:00.5]} 2. Bf4 {[%clk 0:02:59]}
2... d6 {[%clk 0:03:01]} 3. e3 {[%clk 0:02:59.4]} 3... Nbd7 {[%clk 0:03:02.1]}
4. Nf3 {[%clk 0:03:00.4]} 4... b6 {[%clk 0:03:03.1]} 5. Be2 {[%clk 0:03:00.9]}
5... Bb7 {[%clk 0:03:04.3]} 6. O-O {[%clk 0:03:01.9]} 6... c5 {[%clk 0:03:05.8]}
7. c4 {[%clk 0:03:01.9]} 7... g6 {[%clk 0:02:59.7]} 8. Nc3 {[%clk 0:03:00.9]}
8... Bg7 {[%clk 0:02:57.4]} 9. d5 {[%clk 0:03:02]} 9... O-O {[%clk 0:02:57.1]}
10. e4 {[%clk 0:03:02.9]} 10... Ng4 {[%clk 0:02:52.5]} 11. Re1 {[%clk
0:03:01.8]} 11... Nge5 {[%clk 0:02:52.7]} 12. h3 {[%clk 0:02:57.5]} 12... Nxf3+
{[%clk 0:02:51.1]} 13. Bxf3 {[%clk 0:02:58.3]} 13... a6 {[%clk 0:02:52.6]} 14.
a4 {[%clk 0:02:58.4]} 14... Rb8 {[%clk 0:02:37.8]} 15. Qd2 {[%clk 0:02:54.4]}
15... Ne5 {[%clk 0:02:37.1]} 16. Be2 {[%clk 0:02:55.1]} 16... Qc7 {[%clk
0:02:28.2]} 17. Rad1 {[%clk 0:02:54.9]} 17... Rfd8 {[%clk 0:02:26.7]} 18. Be3
{[%clk 0:02:53.5]} 18... f6 {[%clk 0:02:24.7]} 19. f4 {[%clk 0:02:53.7]} 19...
Nf7 {[%clk 0:02:25.1]} 20. Bg4 {[%clk 0:02:54.2]} 20... Bc8 {[%clk 0:02:24.9]}
21. Be6 {[%clk 0:02:54.9]} 21... Rf8 {[%clk 0:02:20.3]} 22. Qe2 {[%clk
0:02:42.9]} 22... Bh6 {[%clk 0:02:20.7]} 23. Qg4 {[%clk 0:02:40.8]} 23... Kg7
{[%clk 0:02:18]} 24. Re2 {[%clk 0:02:24.1]} 24... Nd8 {[%clk 0:02:04.3]} 25. h4
{[%clk 0:02:19.5]} 25... Nxe6 {[%clk 0:01:57.2]} 26. dxe6 {[%clk 0:02:19.3]}
26... f5 {[%clk 0:01:58.3]} 27. exf5 {[%clk 0:02:20]} 27... Rxf5 {[%clk
0:01:58.8]} 28. Bd2 {[%clk 0:02:16.7]} 28... Bb7 {[%clk 0:01:58.6]} 29. Nd5
{[%clk 0:02:17.1]} 29... Bxd5 {[%clk 0:01:58]} 30. cxd5 {[%clk 0:02:17.4]} 30...
Kg8 {[%clk 0:01:55.2]} 31. Bc3 {[%clk 0:02:12.7]} 31... b5 {[%clk 0:01:54.8]}
32. axb5 {[%clk 0:02:13.1]} 32... axb5 {[%clk 0:01:55.4]} 33. g3 {[%clk
0:02:14.1]} 33... b4 {[%clk 0:01:55.2]} 34. Be1 {[%clk 0:02:14]} 34... Bg7
{[%clk 0:01:54.7]} 35. b3 {[%clk 0:02:13.6]} 35... c4 {[%clk 0:01:54.7]} 36.
bxc4 {[%clk 0:02:13.1]} 36... Qxc4 {[%clk 0:01:55.3]} 37. Qf3 {[%clk 0:02:14]}
37... b3 {[%clk 0:01:55.1]} 38. Qe4 {[%clk 0:01:36.1]} 38... Qxe4 {[%clk
0:01:50]} 39. Rxe4 {[%clk 0:01:36.6]} 39... b2 {[%clk 0:01:51.1]} 40. Rb1 {[%clk
0:01:37.2]} 40... Rxd5 {[%clk 0:01:51.8]} 41. Kf2 {[%clk 0:01:38.1]} 41... Rc5
{[%clk 0:01:49.8]} 42. Bd2 {[%clk 0:01:39]} 42... Rc2 {[%clk 0:01:50.3]} 43. Ke3
{[%clk 0:01:36]} 43... Rb3+ {[%clk 0:01:50.6]} 44. Ke2 {[%clk 0:01:32.7]} 44...
Rxg3 {[%clk 0:01:51.1]} 45. Rb4 {[%clk 0:01:28]} 45... Rg2+ {[%clk 0:01:49.9]}
46. Kf3 {[%clk 0:01:29.1]} 46... Rgxd2 {[%clk 0:01:50.3]} 47. Rb8+ {[%clk
0:01:29.9]} 47... Bf8 {[%clk 0:01:51.4]} 48. f5 {[%clk 0:01:30.3]} 48... Rf2+
{[%clk 0:01:47.4]} 49. Ke4 {[%clk 0:01:31.2]} 49... Rc1 {[%clk 0:01:46.3]} 50.
R1xb2 {[%clk 0:01:31.6]} 50... gxf5+ {[%clk 0:01:46]} 51. Kd5 {[%clk 0:01:31.7]}
51... Rxb2 {[%clk 0:01:45.4]} 52. Rxb2 {[%clk 0:01:32.1]} 52... Rc5+ {[%clk
0:01:46.9]} 53. Kd4 {[%clk 0:01:32.8]} 53... Bg7+ {[%clk 0:01:48.5]} 0-1

[Event "*** Titled Tuesday Blitz"]
[Site "Chess.com"]
[Date "2019.07.02"]
[Round "1"]
[White "Supernotar"]
[Black "konradrutkowski"]
[Result "1-0"]
[WhiteElo "2606"]
[BlackElo "2247"]
[TimeControl "180+2"]
[EndTime "13:07:10 PDT"]
[Termination "Supernotar won by checkmate"]

1. d4 {[%clk 0:03:01.9]} 1... Nf6 {[%clk 0:01:54.8]} 2. c4 {[%clk 0:03:00.5]}
2... g6 {[%clk 0:01:56]} 3. Nc3 {[%clk 0:03:01.4]} 3... Bg7 {[%clk 0:01:57.9]}
4. e4 {[%clk 0:03:02.5]} 4... O-O {[%clk 0:01:59.7]} 5. Be2 {[%clk 0:03:04.1]}
5... d6 {[%clk 0:02:01.4]} 6. Nf3 {[%clk 0:03:05.8]} 6... e5 {[%clk 0:02:03]} 7.
O-O {[%clk 0:03:07]} 7... Nc6 {[%clk 0:02:03.7]} 8. d5 {[%clk 0:03:08.4]} 8...
Ne7 {[%clk 0:02:04.3]} 9. Ne1 {[%clk 0:03:10.3]} 9... Nd7 {[%clk 0:02:05.1]} 10.
Be3 {[%clk 0:03:12.2]} 10... f5 {[%clk 0:02:06.6]} 11. f3 {[%clk 0:03:13.7]}
11... f4 {[%clk 0:02:08.3]} 12. Bf2 {[%clk 0:03:15.1]} 12... g5 {[%clk
0:02:10.2]} 13. a4 {[%clk 0:03:16.2]} 13... Ng6 {[%clk 0:02:08]} 14. a5 {[%clk
0:03:17.5]} 14... Nf6 {[%clk 0:02:03.6]} 15. c5 {[%clk 0:03:17.6]} 15... Rf7
{[%clk 0:02:03.1]} 16. cxd6 {[%clk 0:03:18.3]} 16... cxd6 {[%clk 0:02:05]} 17.
Nb5 {[%clk 0:03:19.6]} 17... g4 {[%clk 0:02:04.8]} 18. Bxa7 {[%clk 0:03:17.9]}
18... Rxa7 {[%clk 0:02:00.2]} 19. Nxa7 {[%clk 0:03:18.7]} 19... Bd7 {[%clk
0:02:01.9]} 20. Nb5 {[%clk 0:03:03.7]} 20... Qe7 {[%clk 0:01:58.1]} 21. Nc7
{[%clk 0:03:00.9]} 21... g3 {[%clk 0:01:59]} 22. Ne6 {[%clk 0:02:54.9]} 22...
gxh2+ {[%clk 0:01:59.3]} 23. Kxh2 {[%clk 0:02:47.5]} 23... Nh5 {[%clk 0:02:00]}
24. Rh1 {[%clk 0:02:43.3]} 24... Ng3 {[%clk 0:01:59.5]} 25. Kg1 {[%clk 0:02:44]}
25... Nxh1 {[%clk 0:02:00]} 26. Kxh1 {[%clk 0:02:45.2]} 26... Qh4+ {[%clk
0:01:56.4]} 27. Kg1 {[%clk 0:02:46.3]} 27... Bf6 {[%clk 0:01:54.4]} 28. Nd3
{[%clk 0:02:42.5]} 28... Qh5 {[%clk 0:01:40.2]} 29. Nf2 {[%clk 0:02:41]} 29...
Bh4 {[%clk 0:01:39.1]} 30. Nh3 {[%clk 0:02:41.8]} 30... Bg3 {[%clk 0:01:38.1]}
31. Bf1 {[%clk 0:02:42]} 31... Nf8 {[%clk 0:01:36.5]} 32. Qb3 {[%clk 0:02:40.9]}
32... Qh6 {[%clk 0:01:35.7]} 33. Bc4 {[%clk 0:02:35.4]} 33... Rf6 {[%clk
0:01:32.2]} 34. Qxb7 {[%clk 0:02:26.3]} 34... Rg6 {[%clk 0:01:09.1]} 35. a6
{[%clk 0:02:21.1]} 35... Be1 {[%clk 0:00:44.9]} 36. Qb8 {[%clk 0:01:42.5]} 36...
Bxe6 {[%clk 0:00:11.7]} 37. dxe6 {[%clk 0:01:39.8]} 37... Qxh3 {[%clk
0:00:09.1]} 38. e7+ {[%clk 0:01:37.5]} 38... Kg7 {[%clk 0:00:11]} 39. Qxf8#
{[%clk 0:01:36.8]} 1-0

[Event "*** Titled Tuesday Blitz"]
[Site "Chess.com"]
[Date "2019.07.02"]
[Round "1"]
[White "Hamisandwich"]
[Black "Sanan_Sjugirov"]
[Result "0-1"]
[WhiteElo "2459"]
[BlackElo "2951"]
[TimeControl "180+2"]
[EndTime "13:07:11 PDT"]
[Termination "Sanan_Sjugirov won by resignation"]

1. d4 {[%clk 0:03:01.9]} 1... Nf6 {[%clk 0:03:00.4]} 2. c4 {[%clk 0:03:02.9]}
2... g6 {[%clk 0:02:56.8]} 3. Nc3 {[%clk 0:02:58.1]} 3... d5 {[%clk 0:02:57.7]}
4. e3 {[%clk 0:02:51.4]} 4... Bg7 {[%clk 0:02:57.4]} 5. Nf3 {[%clk 0:02:50.8]}
5... O-O {[%clk 0:02:57.4]} 6. Bd2 {[%clk 0:02:50.2]} 6... c6 {[%clk 0:02:43.6]}
7. Rc1 {[%clk 0:02:49.8]} 7... a6 {[%clk 0:02:42.2]} 8. b3 {[%clk 0:02:43.5]}
8... Ne4 {[%clk 0:02:28.9]} 9. Nxe4 {[%clk 0:02:26.3]} 9... dxe4 {[%clk
0:02:29.9]} 10. Ng5 {[%clk 0:02:26.5]} 10... e5 {[%clk 0:02:25]} 11. Nxe4 {[%clk
0:02:27.6]} 11... exd4 {[%clk 0:02:26.2]} 12. Bb4 {[%clk 0:02:21.9]} 12... Re8
{[%clk 0:01:56.2]} 13. Nd6 {[%clk 0:02:22.9]} 13... Re6 {[%clk 0:01:51.4]} 14.
Nxc8 {[%clk 0:02:22.7]} 14... Qxc8 {[%clk 0:01:53.3]} 15. Bd2 {[%clk 0:02:09.6]}
15... dxe3 {[%clk 0:01:47.7]} 16. Bxe3 {[%clk 0:02:11.5]} 16... Bh6 {[%clk
0:01:45.2]} 17. Be2 {[%clk 0:01:46.2]} 17... Bxe3 {[%clk 0:01:44.2]} 18. fxe3
{[%clk 0:01:48.1]} 18... Nd7 {[%clk 0:01:35.6]} 19. O-O {[%clk 0:01:42.1]} 19...
Ne5 {[%clk 0:01:34.3]} 20. Qd4 {[%clk 0:01:24]} 20... Qc7 {[%clk 0:01:34.1]} 21.
c5 {[%clk 0:00:51.8]} 21... Rd8 {[%clk 0:01:30.2]} 22. Qf4 {[%clk 0:00:52.6]}
22... Qe7 {[%clk 0:01:28.4]} 23. Rc3 {[%clk 0:00:50.8]} 23... Rd2 {[%clk
0:01:23.1]} 24. Bc4 {[%clk 0:00:42.2]} 24... Nxc4 {[%clk 0:01:20.2]} 25. bxc4
{[%clk 0:00:37]} 25... Rd7 {[%clk 0:01:08.6]} 26. Kh1 {[%clk 0:00:21.3]} 26...
Kg7 {[%clk 0:01:01.9]} 27. Rb3 {[%clk 0:00:16.6]} 27... Rf6 {[%clk 0:00:48.9]}
0-1

[Event "*** Titled Tuesday Blitz"]
[Site "Chess.com"]
[Date "2019.07.02"]
[Round "1"]
[White "Dare-Dare"]
[Black "temus_galaktionov"]
[Result "0-1"]
[WhiteElo "2073"]
[BlackElo "2511"]
[TimeControl "180+2"]
[EndTime "13:07:13 PDT"]
[Termination "temus_galaktionov won by resignation"]

1. Nf3 {[%clk 0:02:59.5]} 1... c6 {[%clk 0:03:01.9]} 2. c4 {[%clk 0:03:00.6]}
2... g6 {[%clk 0:03:03.8]} 3. e3 {[%clk 0:03:02.1]} 3... Bg7 {[%clk 0:03:05.7]}
4. d4 {[%clk 0:03:02.6]} 4... d6 {[%clk 0:03:07.6]} 5. Nc3 {[%clk 0:03:04.2]}
5... Nd7 {[%clk 0:03:09]} 6. Be2 {[%clk 0:03:06.1]} 6... Ngf6 {[%clk 0:03:10]}
7. O-O {[%clk 0:03:08]} 7... e5 {[%clk 0:03:10.8]} 8. Qc2 {[%clk 0:03:07.5]}
8... O-O {[%clk 0:03:11.1]} 9. b3 {[%clk 0:03:07.4]} 9... Re8 {[%clk 0:03:11.6]}
10. Bd3 {[%clk 0:03:06.4]} 10... Qe7 {[%clk 0:03:09.9]} 11. Nd2 {[%clk
0:03:06.8]} 11... Nh5 {[%clk 0:03:04.8]} 12. dxe5 {[%clk 0:03:05]} 12... dxe5
{[%clk 0:03:05.6]} 13. Bb2 {[%clk 0:03:04.8]} 13... f5 {[%clk 0:02:59.7]} 14.
Be2 {[%clk 0:03:04.8]} 14... Nhf6 {[%clk 0:02:59.9]} 15. Rad1 {[%clk 0:03:03.3]}
15... b6 {[%clk 0:02:56.3]} 16. Ndb1 {[%clk 0:03:02.6]} 16... Bb7 {[%clk
0:02:57.3]} 17. Ba3 {[%clk 0:03:03.3]} 17... Nc5 {[%clk 0:02:57.2]} 18. Na4
{[%clk 0:03:03.3]} 18... Nfd7 {[%clk 0:02:48]} 19. Nbc3 {[%clk 0:03:02.3]} 19...
Qe6 {[%clk 0:02:45.9]} 20. Nxc5 {[%clk 0:03:02.7]} 20... Nxc5 {[%clk 0:02:47.8]}
21. Bxc5 {[%clk 0:03:03.2]} 21... bxc5 {[%clk 0:02:49.3]} 22. Na4 {[%clk
0:03:03.9]} 22... Qe7 {[%clk 0:02:46.4]} 23. Rd2 {[%clk 0:03:04.2]} 23... Red8
{[%clk 0:02:20.3]} 24. Rfd1 {[%clk 0:03:04.8]} 24... Rxd2 {[%clk 0:02:20.6]} 25.
Qxd2 {[%clk 0:03:04.8]} 25... Bf8 {[%clk 0:02:20.9]} 26. Qd7 {[%clk 0:02:56.8]}
26... Rb8 {[%clk 0:02:12.4]} 27. Kf1 {[%clk 0:02:44.7]} 27... e4 {[%clk
0:02:09.6]} 28. h3 {[%clk 0:02:31.4]} 28... Qe5 {[%clk 0:02:09]} 29. g3 {[%clk
0:02:21.6]} 29... Be7 {[%clk 0:02:07.6]} 30. Qd2 {[%clk 0:02:13.7]} 30... Qc7
{[%clk 0:01:55.2]} 31. Qd7 {[%clk 0:02:10.7]} 31... Qe5 {[%clk 0:01:53.4]} 32.
Qd2 {[%clk 0:02:10.9]} 32... Qc7 {[%clk 0:01:51.4]} 33. Qb2 {[%clk 0:02:11.1]}
33... Bc8 {[%clk 0:01:48.1]} 34. Rd2 {[%clk 0:02:09.9]} 34... Be6 {[%clk
0:01:48.7]} 35. Qc2 {[%clk 0:02:08.2]} 35... Kf7 {[%clk 0:01:49]} 36. Qd1 {[%clk
0:02:07.5]} 36... h6 {[%clk 0:01:45.1]} 37. Qc1 {[%clk 0:01:55.1]} 37... Qe5
{[%clk 0:01:45.6]} 38. Qd1 {[%clk 0:01:54.6]} 38... h5 {[%clk 0:01:42.6]} 39. h4
{[%clk 0:01:47.8]} 39... Kg7 {[%clk 0:01:38]} 40. Kg2 {[%clk 0:01:47.3]} 40...
Rh8 {[%clk 0:01:38.4]} 41. Rc2 {[%clk 0:01:36.2]} 41... g5 {[%clk 0:01:37.9]}
42. hxg5 {[%clk 0:01:24.6]} 42... h4 {[%clk 0:01:39.1]} 43. Rc1 {[%clk
0:01:21.6]} 43... hxg3 {[%clk 0:01:37.4]} 44. fxg3 {[%clk 0:01:19.1]} 44... Bxg5
{[%clk 0:01:38.6]} 45. Qg1 {[%clk 0:01:19.6]} 45... Kf6 {[%clk 0:01:30.6]} 46.
Qf2 {[%clk 0:01:17]} 46... Ke7 {[%clk 0:01:26.7]} 47. Rh1 {[%clk 0:01:14.9]}
47... Rxh1 {[%clk 0:01:25.9]} 48. Kxh1 {[%clk 0:01:11.6]} 48... Qa1+ {[%clk
0:01:23.6]} 0-1

[Event "*** Titled Tuesday Blitz"]
[Site "Chess.com"]
[Date "2019.07.02"]
[Round "1"]
[White "Semen_Khanin"]
[Black "MasterKroket"]
[Result "1-0"]
[WhiteElo "2728"]
[BlackElo "2375"]
[TimeControl "180+2"]
[EndTime "13:07:15 PDT"]
[Termination "Semen_Khanin won by checkmate"]

1. e4 {[%clk 0:03:01.2]} 1... c5 {[%clk 0:03:00]} 2. Nf3 {[%clk 0:03:02.6]} 2...
e6 {[%clk 0:03:00.4]} 3. d4 {[%clk 0:03:03.6]} 3... cxd4 {[%clk 0:03:01.5]} 4.
Nxd4 {[%clk 0:03:05.5]} 4... Nc6 {[%clk 0:03:01.9]} 5. Nc3 {[%clk 0:03:06.8]}
5... Qc7 {[%clk 0:03:02.1]} 6. Be3 {[%clk 0:03:05.9]} 6... a6 {[%clk 0:03:03.1]}
7. a3 {[%clk 0:03:06]} 7... Nf6 {[%clk 0:03:03.7]} 8. f4 {[%clk 0:03:07.2]} 8...
h5 {[%clk 0:02:58.4]} 9. Be2 {[%clk 0:03:06]} 9... d6 {[%clk 0:02:45.8]} 10. O-O
{[%clk 0:03:05]} 10... Bd7 {[%clk 0:02:43.5]} 11. Bf3 {[%clk 0:03:02.3]} 11...
Be7 {[%clk 0:02:40.7]} 12. Qd2 {[%clk 0:03:02.5]} 12... Na5 {[%clk 0:02:36]} 13.
b3 {[%clk 0:02:52.8]} 13... Rc8 {[%clk 0:02:35.8]} 14. Nde2 {[%clk 0:02:54.4]}
14... Ng4 {[%clk 0:02:16.7]} 15. Bxg4 {[%clk 0:02:46.3]} 15... hxg4 {[%clk
0:02:17.3]} 16. Bd4 {[%clk 0:02:39.8]} 16... Rh7 {[%clk 0:02:06.9]} 17. Rad1
{[%clk 0:02:34.8]} 17... Nc6 {[%clk 0:02:06.8]} 18. Be3 {[%clk 0:02:35.4]} 18...
b5 {[%clk 0:01:42.3]} 19. Ng3 {[%clk 0:02:15.9]} 19... Nd8 {[%clk 0:01:32.1]}
20. Bd4 {[%clk 0:02:13.1]} 20... Nc6 {[%clk 0:01:32.4]} 21. Be3 {[%clk
0:02:14.1]} 21... Nd8 {[%clk 0:01:33.4]} 22. Nge2 {[%clk 0:02:14.1]} 22... Nb7
{[%clk 0:01:28.7]} 23. e5 {[%clk 0:02:10]} 23... dxe5 {[%clk 0:01:20.3]} 24.
fxe5 {[%clk 0:02:11.1]} 24... Bc6 {[%clk 0:01:16.3]} 25. Nd4 {[%clk 0:02:07.5]}
25... Bc5 {[%clk 0:00:59]} 26. Qf2 {[%clk 0:02:02.5]} 26... g6 {[%clk
0:00:49.3]} 27. Nxe6 {[%clk 0:01:59.9]} 27... Qxe5 {[%clk 0:00:41.9]} 28. Ng7+
{[%clk 0:01:48]} 28... Rxg7 {[%clk 0:00:18]} 29. Rfe1 {[%clk 0:01:37.1]} 29...
Kf8 {[%clk 0:00:18.4]} 30. Nd5 {[%clk 0:01:26.8]} 30... Bxd5 {[%clk 0:00:17.1]}
31. Bxc5+ {[%clk 0:01:27.7]} 31... Nxc5 {[%clk 0:00:11.7]} 32. Rxe5 {[%clk
0:01:29.1]} 32... Ne4 {[%clk 0:00:11.2]} 33. Qd4 {[%clk 0:01:28.1]} 33... Nf6
{[%clk 0:00:09.6]} 34. Rxd5 {[%clk 0:01:28.3]} 34... Nxd5 {[%clk 0:00:10.9]} 35.
Qxd5 {[%clk 0:01:29.8]} 35... Kg8 {[%clk 0:00:12.4]} 36. Qd7 {[%clk 0:01:27.5]}
36... Rxc2 {[%clk 0:00:13.3]} 37. Qd8+ {[%clk 0:01:29]} 37... Kh7 {[%clk
0:00:13.7]} 38. Qh4+ {[%clk 0:01:30.6]} 38... Kg8 {[%clk 0:00:13.9]} 39. Rd8#
{[%clk 0:01:32.1]} 1-0

[Event "*** Titled Tuesday Blitz"]
[Site "Chess.com"]
[Date "2019.07.02"]
[Round "1"]
[White "pr1105"]
[Black "Samuray111"]
[Result "0-1"]
[WhiteElo "2201"]
[BlackElo "2561"]
[TimeControl "180+2"]
[EndTime "13:07:21 PDT"]
[Termination "Samuray111 won on time"]

1. e4 {[%clk 0:03:01]} 1... c5 {[%clk 0:03:00.1]} 2. Nf3 {[%clk 0:03:01.3]} 2...
Nc6 {[%clk 0:03:00.9]} 3. d4 {[%clk 0:03:02.8]} 3... cxd4 {[%clk 0:03:02]} 4.
Nxd4 {[%clk 0:03:04.7]} 4... g6 {[%clk 0:03:03]} 5. c4 {[%clk 0:03:04.8]} 5...
Nf6 {[%clk 0:03:03.5]} 6. Nc3 {[%clk 0:03:05.4]} 6... d6 {[%clk 0:03:04.5]} 7.
f3 {[%clk 0:03:01.1]} 7... Nxd4 {[%clk 0:03:01.2]} 8. Qxd4 {[%clk 0:03:03]} 8...
Bg7 {[%clk 0:03:02.4]} 9. Be3 {[%clk 0:03:01.5]} 9... O-O {[%clk 0:03:02.2]} 10.
Qd2 {[%clk 0:03:02.5]} 10... a5 {[%clk 0:03:00.7]} 11. Na4 {[%clk 0:02:32.8]}
11... Bd7 {[%clk 0:02:40.1]} 12. Nb6 {[%clk 0:02:27.6]} 12... Rb8 {[%clk
0:02:39]} 13. Qxa5 {[%clk 0:02:21.7]} 13... Bc6 {[%clk 0:02:36]} 14. Bd3 {[%clk
0:02:18.2]} 14... Nd7 {[%clk 0:02:36.5]} 15. Qb4 {[%clk 0:02:18.3]} 15... Nc5
{[%clk 0:02:35.1]} 16. O-O-O {[%clk 0:02:06.6]} 16... Qc7 {[%clk 0:02:21.6]} 17.
Bxc5 {[%clk 0:01:38.1]} 17... dxc5 {[%clk 0:02:20.2]} 18. Qxc5 {[%clk 0:01:40]}
18... Rfd8 {[%clk 0:02:08.9]} 19. Nd5 {[%clk 0:01:29.8]} 19... Qd7 {[%clk
0:01:40.6]} 20. Qxe7 {[%clk 0:00:42]} 20... Qc8 {[%clk 0:01:37.7]} 21. Nb6
{[%clk 0:00:30.6]} 21... Qe6 {[%clk 0:01:34.8]} 22. Qxe6 {[%clk 0:00:28.5]}
22... fxe6 {[%clk 0:01:36.7]} 23. Bc2 {[%clk 0:00:27.3]} 23... Bd4 {[%clk
0:01:37]} 24. Na4 {[%clk 0:00:25.6]} 24... b5 {[%clk 0:01:34.9]} 25. cxb5 {[%clk
0:00:25.7]} 25... Bxb5 {[%clk 0:01:35.9]} 26. Nc3 {[%clk 0:00:26.5]} 26... Bc4
{[%clk 0:01:36.9]} 27. a3 {[%clk 0:00:20.3]} 27... e5 {[%clk 0:01:35.6]} 28. Bd3
{[%clk 0:00:21.5]} 28... Bb3 {[%clk 0:01:35]} 29. Rde1 {[%clk 0:00:22.3]} 29...
Rdc8 {[%clk 0:01:35.5]} 30. Bc2 {[%clk 0:00:20.4]} 30... Bxc3 {[%clk 0:01:31.2]}
31. bxc3 {[%clk 0:00:21.9]} 31... Rxc3 {[%clk 0:01:32.8]} 32. Re2 {[%clk
0:00:23.5]} 32... Rbc8 {[%clk 0:01:33.6]} 33. Kb2 {[%clk 0:00:24.8]} 33... Bxc2
{[%clk 0:01:31]} 34. Rc1 {[%clk 0:00:25.7]} 34... Rb3+ {[%clk 0:01:31.1]} 35.
Ka2 {[%clk 0:00:25.5]} 35... Ra8 {[%clk 0:01:28.4]} 0-1